Cogmind - Beta 15 @@@ ROGUE MODE // 2025.08.19 @ 21:07:24 Player: NQH Result: Destroyed by G-34 Mercenary with Small Laser Performance ------------- Evolutions (0) 0 Regions Visited (1) 200 Robots Destroyed (2) 10 Value Destroyed (81) 81 Prototype IDs (0) 0 Alien Tech Used (0) 0 Bonus (0) 0 TOTAL SCORE: 291 Bonus ------- None Cogmind --------- Core Integrity 0/250 Matter 300/300 Energy 300/300 System Corruption 6% Temperature Cool (6) Movement Walking (120) Location -10/Materials Parts ------- > --- POWER (1) -------- (None) > --- PROPULSION (2) --- Aluminum Leg > --- UTILITY (2) ------ Large Battery > --- WEAPON (2) ------- (None) > --- INVENTORY (5) ---- Light Treads Light Treads Aluminum Leg Peak State ------------ > --- POWER ------------ Light Nuclear Core > --- PROPULSION ------- Aluminum Leg Aluminum Leg > --- UTILITY ---------- Large Battery > --- WEAPON ----------- EM Pulse Gun Light Assault Rifle > --- INVENTORY -------- Light Treads Light Treads Aluminum Leg [Rating: 8] Favorites ----------- Power Light Nuclear Core Power Core Light Nuclear Core Propulsion Aluminum Leg Treads Light Treads Leg Aluminum Leg Utility Large Battery Storage Large Battery Weapon Light Assault Rifle Energy Gun EM Pulse Gun Ballistic Gun Light Assault Rifle Build | -11 -10 ------- Run | Yrd Mat Slots Evolved . | . . Power . | . . Propulsion . | . . Utility . | . . Weapon . | . . Parts Attached 8 | 4 4 Power 1 | . 1 Engine . | . . Core 1 | . 1 Reactor . | . . Propulsion 4 | 2 2 Treads 2 | 2 . Leg 2 | . 2 Wheel . | . . Hover . | . . Flight . | . . Utility 1 | . 1 Device . | . . Storage 1 | . 1 Processor . | . . Hackware . | . . Protection . | . . Artifact . | . . Weapon 2 | 2 . Energy Gun 1 | 1 . Energy Cannon . | . . Ballistic Gun 1 | 1 . Ballistic Cannon . | . . Launcher . | . . Special Weapon . | . . Impact Weapon . | . . Slashing Weapon . | . . Piercing Weapon . | . . Special Melee Weapon . | . . Unidentified Prototypes . | . . Corrupted Parts 1 | . 1 System Corruption 6 | . 6 Parts Lost 4 | . 4 Power 1 | . 1 Propulsion 1 | . 1 Utility . | . . Weapon 2 | . 2 Highest Loss Streak 4 | . 4 To Critical Strikes . | . . Average Backups 2 | . 2 Power . | . . Propulsion 2 | . 2 Utility . | . . Weapon . | . . Tool/Special . | . . Unused Backups 1 | . 1 Power . | . . Propulsion 1 | . 1 Utility . | . . Weapon . | . . Tool/Special . | . . Average Slot Usage (%) 57 | . 57 Core 2 | . 2 Treads 7 | . 7 Leg 17 | . 17 Storage 5 | . 5 Energy Gun 10 | . 10 Ballistic Gun 12 | . 12 Peak Build Rating 8 | 4 8 Average Rating 4 | 2 4 On Entrance 2 | . 4 Naked Turns . | . . Heaviest Build 11 | 3 11 Greatest Support 40 | 40 40 Greatest Overweight (x) . | . . Average Overweight (x) . | . . Largest Inventory Capacity 5 | 5 5 Average Capacity 5 | 5 5 Most Carried 4 | 2 4 Average Carried 2 | . 2 Final Capacity 5 | 5 5 Final Carried 3 | 2 3 Class Distribution -------------------- 100% | Mutant Dominant Class ---------------- Mutant | -10/Materials Resources | -11 -10 ----------- Run | Yrd Mat Matter Collected 264 | 206 58 Remotely . | . . Salvage Created 102 | . 102 Parts 6 | . 6 Haulers Intercepted . | . . Recyclers Shooed . | . . Parts Field Recycled . | . . Retrieved Matter . | . . Parts Self-Destructed . | . . Prevented . | . . Kills | -11 -10 ------- Run | Yrd Mat Combat Hostiles Destroyed 2 | . 2 Melee 1 | . 1 Guns 1 | . 1 Classes Destroyed 1 | . 1 Grunt 2 | . 2 Best Kill Streak 1 | . 1 Combat Bots Only 1 | . 1 Max Kills in Single Turn 1 | . 1 Gunslinging . | . . Exploded . | . . Melee 1 | . 1 Uniques/NPCs Destroyed . | . . Combat | -11 -10 -------- Run | Yrd Mat Hostile Shots Fired 62 | . 62 Missed 14 | . 14 Hits 48 | . 48 Projectile 48 | . 48 Damage Taken 588 | 7 581 Core 251 | 5 246 Absorbed by Shields . | . . Core Remaining (%) 98 | 98 . Volleys Fired 11 | . 11 Largest 2 | . 2 Hottest 60 | . 60 Shots Fired 21 | . 21 Gun 21 | . 21 Cannon . | . . Launcher . | . . Special . | . . Kinetic 11 | . 11 Thermal . | . . Explosive . | . . Electromagnetic 10 | . 10 Robot Hit Streak 6 | . 6 Robot Miss Streak 2 | . 2 Penetration Max . | . . Secondary Targets . | . . Shots Hit Robots 16 | . 16 Core Hits 10 | . 10 Critical Kills . | . . Critical Parts Destroyed . | . . Critical Strikes . | . . Melee Attacks . | . . Impact . | . . Slashing . | . . Piercing . | . . Sneak Attacks . | . . Combat Hostiles . | . . Follow-up Attacks . | . . Damage Inflicted 217 | 5 212 Guns 158 | . 158 Cannons . | . . Explosions . | . . Melee . | . . Ramming 59 | 5 54 Kinetic 70 | . 70 Thermal . | . . Explosive . | . . Electromagnetic 88 | . 88 Impact . | . . Slashing . | . . Piercing . | . . Highest Corruption 6 | . 6 Average Corruption 6 | . 6 Corruption Purged . | . . Corruption Blocked . | . . Effects 3 | . 3 Matter Fused 1 | . 1 Data Loss (minor) 1 | . 1 Weapon Failures 1 | . 1 Overload Shots . | . . Overflow Damage . | . . Projectiles . | . . Explosions . | . . Melee . | . . Knockbacks . | . . Impact . | . . Kinetic . | . . Secondary . | . . Self-Inflicted Damage 2 | 2 . Shots . | . . Rammed 2 | 2 . Targets Rammed 50 | 2 48 Kicked 48 | . 48 Crushed . | . . Highest Temperature 38 | . 38 Average Temperature 17 | . 17 Received Heat Transfer 303 | . 303 Siege Activations . | . . Martial Activations . | . . Shielding Activations . | . . Robots Disrupted . | . . Combat Hostiles . | . . Robots Corrupted . | . . Combat Hostiles . | . . Parts Fried 1 | . 1 Impact Corruptions . | . . Robots Melted . | . . Combat Hostiles . | . . Parts Melted . | . . Heat Transferred . | . . Parts Sabotaged . | . . Parts Stolen . | . . Parts Stripped . | . . Power Chain Reactions . | . . Alert | -11 -10 ------- Run | Yrd Mat Maximum Alert Level . | . . Low Security (%) 100 | 100 100 Level 1 . | . . Level 2 . | . . Level 3 . | . . Level 4 . | . . Level 5 . | . . High Security . | . . Max Security . | . . Peak Influence 35 | . 35 Initial . | . . Average 6 | . 7 Influence Increases 65 | . 65 Destroy 0b10 Robot/C 40 | . 40 Destroy Leader 10 | . 10 Lose Combat Pursuer 15 | . 15 Influence Decreases 55 | . 55 Time Decay 45 | . 45 Lost Part 10 | . 10 Squads Dispatched 1 | . 1 Investigation . | . . Extermination . | . . Reinforcement 1 | . 1 Assault . | . . Garrison . | . . Intercept . | . . Searches Triggered . | . . Construction Impeded . | . . Haulers Reinforced . | . . Active Scanning Responses . | . . Cargo Convoy Interrupts . | . . Stealth | -11 -10 --------- Run | Yrd Mat Distress Signals . | . . Communications Jammed . | . . Distress Signals . | . . Times Spotted 5 | . 5 Peak Tracking Total 2 | . 2 Tactical Retreats 1 | . 1 Traps | -11 -10 ------- Run | Yrd Mat Traps Triggered 1 | . 1 Indirectly . | . . Trap Hack Attempts . | . . Triggered . | . . Disarmed . | . . Reprogrammed . | . . Reused . | . . Traps Extracted . | . . Installed . | . . Triggered . | . . Machines | -11 -10 ---------- Run | Yrd Mat Machines Disabled . | . . Max in Single Turn . | . . Machines Repaired . | . . Machines Dismantled . | . . Machines Sabotaged . | . . Overloaded Fab Kills . | . . Hacking | -11 -10 --------- Run | Yrd Mat Machines Accessed . | . . Terminals . | . . Fabricators . | . . Repair Stations . | . . Recycling Units . | . . Scanalyzers . | . . Garrison Access . | . . Total Hacks . | . . Successful . | . . Failed . | . . Catastrophic . | . . Database Lockouts . | . . Manual . | . . Terminals . | . . Fabricators . | . . Repair Stations . | . . Recycling Units . | . . Scanalyzers . | . . Garrison Access . | . . Terminal Hacks . | . . Fabricator Hacks . | . . Repair Station Hacks . | . . Recycling Unit Hacks . | . . Scanalyzer . | . . Garrison Access Hacks . | . . Unauthorized Hacks . | . . Terminals . | . . Fabricators . | . . Repair Stations . | . . Recycling Units . | . . Scanalyzers . | . . Garrison Access . | . . Data Cores Recovered . | . . Used . | . . Hacking Detections . | . . Full Trace Events . | . . Feedback Events . | . . Feedback Blocked . | . . Robot Schematics Acquired . | . . Robots Built . | . . Authchips . | . . Time . | . . Total Robot Build Rating . | . . Part Schematics Acquired . | . . Parts Built . | . . Authchips . | . . Time . | . . Total Part Build Rating . | . . Parts Repaired . | . . Time . | . . Parts Recycled . | . . Recycled Matter . | . . Retrieved Matter . | . . Retrieved Components . | . . Parts Scanalyzed . | . . Part Schematics Acquired . | . . Parts Damaged . | . . Bothacking | -11 -10 ------------ Run | Yrd Mat Used RIF Installer . | . . Robots Hacked . | . . Non-combat . | . . Combat . | . . Robot Hacks Applied . | . . Relay Couplers Released . | . . Fabnet Peak Effective % . | . . Robots Rewired . | . . Allies Hacked . | . . Hacks Repelled . | . . Allies | -11 -10 -------- Run | Yrd Mat Total Allies . | . . Largest Group . | . . Highest-Rated Group . | . . Highest-Rated Ally . | . . Total Orders . | . . Ally Attacks . | . . Total Damage . | . . Kills . | . . Allies Corrupted . | . . Allies Melted . | . . Intel | -11 -10 ------- Run | Yrd Mat Active Infowar (turns) . | . . Robot Analysis Total . | . . Derelict Logs Recovered . | . . Drone Launches . | . . Drone Recoveries . | . . Exploration | -11 -10 ------------- Run | Yrd Mat Turns Passed 284 | 39 245 Spaces Moved 161 | 47 114 Core 45 | 42 3 Treads 42 | 5 37 Legs 74 | . 74 Wheels . | . . Hover . | . . Flight . | . . Fastest Speed 50 | 50 50 Average Speed 110 | 61 131 Slowest Speed 160 | 160 160 Overloaded Moves . | . . Propulsion Burnouts . | . . Robots Hopped . | . . Potential Cave-ins . | . . Cave-ins Triggered . | . . Exploration Rate (%) 15 | 4 27 Regions Visited 1 Branch Regions . Pre-discovered Areas . | . . Known Exits Taken . | . . Unknown Exits Taken 1 | 1 . Scrap Searched . | . . Spaces Dug . | . . Terrain Destroyed . | . . Melee . | . . Projectile . | . . AOE . | . . Terrain Rammed . | . . Walls Destroyed . | . . Machines Disabled . | . . Actions | -11 -10 --------- Run | Yrd Mat Total 233 | 54 179 Wait . | . . Move 160 | 46 114 Hop . | . . Pick Up 4 | 2 2 Fast Attach 5 | 4 1 Attach 1 | . 1 Detach . | . . Swap 2 | . 2 Drop . | . . Fire 11 | . 11 Melee . | . . Ram 2 | 2 . Kick 48 | . 48 Crush . | . . Escape Stasis . | . . Rewire . | . . Trap . | . . Miscellaneous . | . . Route ------- -11/Scrapyard -10/Materials (discovered 1 exit: [*Mat]) History --------- Turn | Location | Event 5 | -11/Scrapyard | Discovered new exit (range 16) 40 | -11/Scrapyard | Entered Materials 41 | -10/Materials | Met a group of wandering Federalists 121 | -10/Materials | Discovered new exit (range 9) 254 | -10/Materials | Core integrity fell below 50% 269 | -10/Materials | Core integrity fell below 20% 285 | -10/Materials | Destroyed by G-34 Mercenary with Small Laser Last Messages --------------- 00234_ Kicked G-34 Mercenary out of the way. 00235_ Kicked G-34 Mercenary. 00237_ Kicked G-34 Mercenary out of the way. 00238_ Kicked G-34 Mercenary. 00240_ Kicked G-34 Mercenary out of the way. 00243_ Kicked G-34 Mercenary. 00247_ Kicked G-34 Mercenary out of the way. 00249_ Kicked G-34 Mercenary. 00249_ Aluminum Leg destroyed. 00250_ Kicked G-34 Mercenary out of the way. 00251_ Kicked G-34 Mercenary. 00256_ Kicked G-34 Mercenary out of the way. 00259_ Kicked G-34 Mercenary. 00261_ Lgt. Assault Rifle destroyed. 00261_ Kicked G-34 Mercenary. 00265_ Kicked G-34 Mercenary out of the way. 00265_ G-34 Mercenary destroyed. 00268_ Kicked G-34 Mercenary. 00275_ Kicked G-34 Mercenary out of the way. 00281_ Kicked G-34 Mercenary. Map ----- +----------------------------------------------------+ | ????????????????????????????# ????? | | ????????????????????????????# ????? | | ????????????????????????????# #???? | | ??????????????????????????### #???? | | ??????????????????????????? ##### | | ??????????????????????????? # | | ???????????????????????????? # | | ????????????????????????????# # | | ????????????????????????????# # | | ????????????????????????????# # | | ?????????????????????? ???# # | | ?????????????????????# ???# # | | ?????????????????????# ???# # | | ?????????????????????# #??# + | | ?????????????????????# #####/###### | | ?????????????????????# # #? | | ?????????????????????# # """ """ #? | | ?????????????????????# # "Y """ #? | | ?????????????????????# # """ """ #? | | ?????????????????????# # #? | | ?????????????????????# # #? | | ????????#??########??# # #? | | ????????# ?#%%%%%%#??# # #? | | ????????# #%"""%%#??# #####+##+##? | | ???? ! # *#g"R #??# ##### #?? | | ???? +=%/@""" #??# % #?? | | ????? # =#%%[ r #### ####### ### | | ????????#^ #%% /a #????## % | | ????????##?############+#####?# | | ??????????????????# #?## % | | ??????????????????# """ #?# % ## | | ??????????????????# "T" #?# # | | ??????????????????# #?# < # | | ??????????????????# #?## ## | | ??????????????????# """ #??#####? | | ??????????????????# """ #???????? | | ??????????????????# """ #???????? | | ??????????????????###########???????? | | ????????????????????????????????????? | | ????????????????????????????????????? | | | | | | | | | | | | | | | | | | | | | +----------------------------------------------------+ Best States ------------- Heat Dissipation 25 Energy Generation 14 Energy Capacity 360 Matter Stores 300 Matter Capacity 300 Sight Range 16 Terrain Scan Density 10 Evasion (%) 55 Recoil Reduction 2 Item Schematics ----------------- None Robot Schematics ------------------ None Fabricated ------------ Nothing Repaired ---------- Nothing Alien Tech Used ----------------- None Achievements -------------- None Challenges ------------ None Game ------ Seed XenonArmageddonComputer Manual? 0 Play Time 00:04:53 Cumulative 11.7 hours Start 2025.08.19 @ 21:04:28 End 2025.08.19 @ 21:07:24 Sessions 1 Manual Loads 0 Difficulty Rogue Special Mode None Game No. 26 Rogue 26 Adventurer 0 Explorer 0 Win Type - Total 0 Types 0/0/0/0/0/0/0/0/0/0 Lore% 9 Gallery% 20 Achievement% 18 Wizard Run 0 Options --------- Layout 1 ASCII 0 Keyboard 1 Movement Vi Keybinds 0 Fullscreen 1 Font 16/TerminusCaps Map View 55x38 Zoom Use 0% Tactical HUD 1 Map Filters NONE Filters NONE Steam 1 RUN: b7943775-e174-485b-9191-b03be7f295f1